Workbook

Sheet Zeit
A1: Ermittlung des Personalbedarfs im Gruppendienst Einrichtungen der Erziehungshilfe nach § 45 Sozialgesetzbuch VIII
A2: Hinweis: Dieses Rechenschema eignet sich nur zur Ermittlung des Personalbedarfs für jeweils eine Gruppe. Gruppen mit unterschiedlichen Öffnungszeiten müssen daher jeweils getrennt berechnet werden. Uhrzeiten sind im Format hh:mm einzugeben.
A3: Name der Einrichtung | G3: Abteilung / Gruppe
A5: 1. | B5: Ermittlung der Betreuungszeiten | G5: Datum
A6: 1.1 | B6: Schultage (durchschnittlich 186 Tage)
B7: von (Uhrzeit) | C7: bis (Uhrzeit) | D7: = Stunden | E7: x Anzahl der Betreuer | F7: = Betreuungsstunden
D8: =ROUND((C8-B8)*24*60,0)/60/24 -> 0 | F8: =ROUND((C8-B8)*E8*24*60,0)/60/24 -> 0
D9: =ROUND((C9-B9)*24*60,0)/60/24 -> 0 | F9: =ROUND((C9-B9)*E9*24*60,0)/60/24 -> 0
D10: =ROUND((C10-B10)*24*60,0)/60/24 -> 0 | F10: =ROUND((C10-B10)*E10*24*60,0)/60/24 -> 0
D11: =ROUND((C11-B11)*24*60,0)/60/24 -> 0 | F11: =ROUND((C11-B11)*E11*24*60,0)/60/24 -> 0
A12: 1 | D12: =A12-B12+C12 -> 1 | F12: =ROUND((D12/4*E12)*24*60,0)/60/24 -> 0 | G12: Nachtbereitschaft = 1/4 Arbeitszeit
J13: Summe 1.1
B14: Betreuungsstunden an Schultagen | E14: Summe | F14: =SUM(F8:F12) -> 0 | G14: x | I14: Tage = | J14: =ROUND((F14*H14)*24*60,0)/60/24 -> 0 | K14: Std.
A15: 1.2 | B15: schulfreie Tage
B16: von (Uhrzeit) | C16: bis (Uhrzeit) | D16: = Stunden | E16: x Anzahl der Betreuer | F16: = Betreuungsstunden
D17: =ROUND((C17-B17)*24*60,0)/60/24 -> 0 | F17: =ROUND((C17-B17)*E17*24*60,0)/60/24 -> 0
D18: =ROUND((C18-B18)*24*60,0)/60/24 -> 0 | F18: =ROUND((C18-B18)*E18*24*60,0)/60/24 -> 0
D19: =ROUND((C19-B19)*24*60,0)/60/24 -> 0 | F19: =ROUND((C19-B19)*E19*24*60,0)/60/24 -> 0
D20: =ROUND((C20-B20)*24*60,0)/60/24 -> 0 | F20: =ROUND((C20-B20)*E20*24*60,0)/60/24 -> 0
A21: 1 | D21: =A21-B21+C21 -> 1 | F21: =ROUND((D21/4*E21)*24*60,0)/60/24 -> 0 | G21: Nachtbereitschaft = 1/4 Arbeitszeit
J22: Summe 1.2
B23: Betreuungsstunden an schulfreien Tagen. | E23: Summe | F23: =SUM(F17:F21) -> 0 | G23: x | I23: Tage = | J23: =ROUND((F23*H23)*24*60,0)/60/24 -> 0 | K23: Std.
A24: 1.3 | B24: Tage mit anderem Betreuungsbedarf
B25: Art des Betreuungsbedarfs | D25: = Summe der täglichen Betreuungsstunden | E25: x Anzahl der Betreuer | F25: = Betreuungsstunden
F26: =ROUND((D26*E26)*24*60,0)/60/24 -> 0 | G26: x | I26: Tage = | J26: =ROUND((F26*H26)*24*60,0)/60/24 -> 0 | K26: Std.
F27: =ROUND((D27*E27)*24*60,0)/60/24 -> 0 | G27: x | I27: Tage = | J27: =ROUND((F27*H27)*24*60,0)/60/24 -> 0 | K27: Std.
F28: =ROUND((D28*E28)*24*60,0)/60/24 -> 0 | G28: x | I28: Tage = | J28: =ROUND((F28*H28)*24*60,0)/60/24 -> 0 | K28: Std.
J29: Summe 1.3
B30: Betreuungsstunden an Tagen mit anderem Betreuungsbedarf | J30: =ROUND((SUM(J26:J28))*24*60,0)/60/24 -> 0 | K30: Std.
A31: 1.4 | B31: Jährliche Betreuungsstunden pro Gruppe laut Nrn. 1.1 - 1.3: | J31: =ROUND((J14+J23+J30)*24*60,0)/60/24 -> 0 | K31: Std.
B32: Erläuterungen

Sheet Arbeitszeit
A1: =Zeit!A1 -> Ermittlung des Personalbedarfs im Gruppendienst Einrichtungen der Erziehungshilfe nach § 45 Sozialgesetzbuch VIII
A2: Name der Einrichtung | H2: Abteilung / Gruppe
A3: =Zeit!A4 -> 0 | H3: =Zeit!G4 -> 0
H4: Datum | J4: =Zeit!I5 -> 00:00:00
A5: 2. | B5: Berechnung der Jahresarbeitszeit von Fachkräften
A6: 2.1 | B6: a) | C6: Tarifliche Wochenarbeitszeit für Fachkräfte
C7: 1.625 | D7: Tarifliche Wochenarbeitszeit in Stunden:Minuten
C8: =(C7/5) -> 0.325 | D8: Arbeitszeit pro Tag in Stunden:Minuten
B9: b) | C9: Bruttoarbeitszeit pro Jahr (Stunden:Minuten) | J9: =C7*52+C8 -> 84.825 | K9: Std.
A10: 2.2 | B10: Von der Bruttoarbeitszeit abzusetzende Zeiten
B11: a) | C11: Feiertage, Urlaubstage und Fortbildung
C12: 11 | D12: Feiertage x Arbeitszeit pro Tag | J12: =ROUND(C12*60,2)/60*C8 -> 3.575 | K12: Std.
C13: 29 | D13: Urlaubstage+ 2 Tage * = 31 Tage x Arbeitszeit pro Tag (* = Weihnachten und Silvester) | J13: =ROUND((C13+2)*60,2)/60*C8 -> 10.075 | K13: Std.
C14: 5 | D14: Tage für Fortbildung x Arbeitszeit pro Tag | J14: =ROUND(C14*60,2)/60*C8 -> 1.625 | K14: Std.
C15: Zwischensumme Nr. 2.2 a | J15: =J9-J12-J13-J14 -> 69.55 | K15: Std.
B17: b) | C17: Krankheitszeiten
C18: Nicht vorhersehbare Ausfallzeiten, z. B. wegen Krankheit, Kur, etc.
C19: 3 | D19: % aus der Zwischensumme Nr. 2.2.a für Fachkräfte | J19: =J15*C19/100 -> 2.0865 | K19: Std.
C20: Zwischensumme Nr. 2.2 b | J20: =ROUND((J15-J19)*24*60,0)/60/24 -> 67.46319444 | K20: Std.
B22: c) | C22: Verfügungszeit
C23: Individuelle Arbeitszeiten für die Gruppe, wie z. B. Zeit für Konferenzen, Praxisberatung,
C24: Vor- und Nachbereitung, Berichtsführung, Supervision, Kontakte zu Eltern und anderen Stellen
C25: 0.125 | D25: Stunden x (Zwischensumme aus Nr. 2.2. b : Wochenarbeitszeit) für Fachkräfte | J25: =ROUND(C25*60,2)/60*(J20/C7) -> 5.189476496 | K25: Std.
C26: Jährliche Nettoarbeitsstunden je Fachkraft im Gruppendienst | J26: =J20-J25 -> 62.27371795 | K26: Std.
A28: 2.3 | C28: Personalbedarf im Gruppendienst
C29: Jährliche Betreuungsstunden pro Gruppe (Ansatz aus Nr. 1.4) | J29: =Zeit!J31 -> 0 | K29: Std.
C30: Jährliche Nettoarbeitsstunden je Fachkraft im Gruppendienst aus Nr. 2.2 | J30: =J26 -> 62.27371795 | K30: Std.
C31: Erforderliche Planstellen | J31: =J29/J30 -> 0
